fUST/lending_fUST_20260118
["ID","MTS","AMOUNT","RATE_DAILY","PERIOD"]
[402504243,1768690247831,-500.0,0.00016438,3]
[402504245,1768690247840,-500.0,0.00016438,3]
[402504247,1768690247850,-500.0,0.00016438,3]
[402504249,1768690247859,-902.19,0.00016438,3]
[402504251,1768690247868,-500.0,0.00016438,3]
[402504253,1768690247877,-503.06859357,0.00016438,3]
[402504255,1768690247887,-424.34553456,0.00016438,3]
[402504257,1768690247896,-1625.11,0.00016438,3]
[402504259,1768690247906,-822.5,0.00016438,3]
[402504261,1768690247915,-500.0,0.00016438,3]
[402504263,1768690247924,-509.14,0.00016438,3]
[402504265,1768690247933,-500.0,0.00016438,3]
[402504267,1768690247943,-500.0,0.00016438,3]
[402504269,1768690247953,-500.0,0.00016438,3]
[402504271,1768690247962,-507.95,0.00016438,3]
[402504273,1768690247971,-631.39,0.00016438,3]
[402504275,1768690247981,-500.0,0.00016438,3]
[402504277,1768690247990,-500.0,0.00016438,3]
[402504279,1768690248000,-500.0,0.00016438,3]
[402504281,1768690248009,-500.0,0.00016438,3]
[402504283,1768690248018,-500.0,0.00016438,3]
[402504285,1768690248027,-543.61913102,0.00016438,3]
[402504287,1768690248035,-500.0,0.00016438,3]
[402504289,1768690248044,-500.0,0.00016438,3]
[402504291,1768690248054,-1958.41,0.00016438,3]
[402504293,1768690248064,-500.0,0.00016438,3]
[402504295,1768690248074,-500.0,0.00016438,3]
[402504297,1768690248083,-500.0,0.00016438,3]
[402504299,1768690248093,-535.27896173,0.00016438,3]
[402504301,1768690248102,-500.0,0.00016438,3]
[402504303,1768690248112,-1228.38,0.00016438,3]
[402504305,1768690248121,-500.0,0.00016438,3]
[402504307,1768690248130,-500.0,0.00016438,3]
[402504309,1768690248140,-618.12,0.00016438,3]
[402504311,1768690248149,-500.0,0.00016438,3]
[402504314,1768690248158,-500.0,0.00016438,3]
[402504316,1768690248168,-500.0,0.00016438,3]
[402504318,1768690248177,-500.0,0.00016438,3]
[402504320,1768690248187,-500.0,0.00016438,3]
[402504322,1768690248196,-500.0,0.00016438,3]
[402504324,1768690248205,-500.0,0.00016438,3]
[402504326,1768690248215,-500.0,0.00016438,3]
[402504328,1768690248224,-500.0,0.00016438,3]
[402504330,1768690248233,-500.0,0.00016438,3]
[402504332,1768690248242,-500.0,0.00016438,3]
[402504334,1768690248252,-500.0,0.00016438,3]
[402504336,1768690248261,-500.0,0.00016438,3]
[402504338,1768690248271,-500.0,0.00016438,3]
[402504340,1768690248280,-532.04,0.00016438,3]
[402504342,1768690248289,-658.45,0.00016438,3]
[402504344,1768690248304,-500.0,0.00016438,3]
[402504346,1768690248313,-500.0,0.00016438,3]
[402504348,1768690248322,-500.0,0.00016438,3]
[402504350,1768690248331,-500.0,0.00016438,3]
[402504352,1768690248342,-500.0,0.00016438,3]
[402504354,1768690248351,-660.45,0.00016438,3]
[402504356,1768690248360,-500.0,0.00016438,3]
[402504358,1768690248370,-500.0,0.00016438,3]
[402504360,1768690248379,-500.0,0.00016438,3]
[402504362,1768690248390,-500.0,0.00016438,3]
[402504364,1768690248400,-588.04,0.00016438,3]
[402504366,1768690248409,-500.0,0.00016438,3]
[402504368,1768690248418,-500.0,0.00016438,3]
[402504370,1768690248427,-698.4,0.00016438,3]
[402504372,1768690248437,-500.0,0.00016438,3]
[402504374,1768690248446,-500.0,0.00016438,3]
[402504376,1768690248457,-500.0,0.00016438,3]
[402504378,1768690248466,-500.0,0.00016438,3]
[402504380,1768690248476,-500.0,0.00016438,3]
[402504382,1768690248486,-500.0,0.00016438,3]
[402504384,1768690248495,-500.0,0.00016438,3]
[402504386,1768690248504,-500.0,0.00016438,3]
[402504388,1768690248513,-500.0,0.00016438,3]
[402504390,1768690248523,-500.0,0.00016438,3]
[402504392,1768690248532,-577.4,0.00016438,3]
[402504394,1768690248542,-1325.56,0.00016438,3]
[402504396,1768690248553,-172.6105479,0.00016438,3]
[402504398,1768690248563,-500.0,0.00016438,3]
[402504400,1768690248573,-500.0,0.00016438,3]
[402504403,1768690248583,-935.84,0.00016438,3]
[402504404,1768690248592,-500.0,0.00016438,3]
[402504407,1768690248603,-743.48,0.00016438,3]
[402504409,1768690248612,-500.0,0.00016438,3]
[402504410,1768690248625,-500.0,0.00016438,3]
[402504413,1768690248634,-616.9,0.00016438,3]
[402504415,1768690248644,-500.0,0.00016438,3]
[402504416,1768690248653,-869.48,0.00016438,3]
[402504419,1768690248662,-500.0,0.00016438,3]
[402504420,1768690248672,-151.0,0.00016438,2]
[402504423,1768690248681,-151.0,0.00016438,2]
[402504424,1768690248691,-151.0,0.00016438,2]
[402504426,1768690248702,-151.0,0.00016438,2]
[402504428,1768690248712,-151.0,0.00016438,2]
[402504431,1768690248722,-1211.78,0.00016438,3]
[402504432,1768690248732,-298.75076,0.00016438,2]
[402504434,1768690248741,-500.0,0.00016438,3]
[402504437,1768690248751,-500.0,0.00016438,3]
[402504438,1768690248760,-500.0,0.00016438,3]
[402504440,1768690248770,-632.36,0.00016438,3]
[402504442,1768690248780,-913.02,0.00016438,3]
[402504444,1768690248790,-1274.41,0.00016438,3]
[402504446,1768690248801,-500.0,0.00016438,3]
[402504448,1768690248810,-1122.48,0.00016438,3]
[402504450,1768690248821,-500.0,0.00016438,3]
[402504452,1768690248831,-500.0,0.00016438,3]
[402504454,1768690248841,-500.0,0.00016438,3]
[402504456,1768690248851,-590.51,0.00016438,3]
[402504458,1768690248860,-500.0,0.00016438,3]
[402504460,1768690248870,-1318.01,0.00016438,3]
[402504462,1768690248880,-332.91217118,0.00016438,3]
[402504464,1768690248890,-500.0,0.00016438,3]
[402504466,1768690248899,-938.59,0.00016438,3]
[402504468,1768690248909,-500.0,0.00016438,3]
[402504470,1768690248919,-500.0,0.00016438,3]
[402504472,1768690248928,-500.0,0.00016438,3]
[402504474,1768690248938,-500.0,0.00016438,3]
[402504476,1768690248948,-183.73779352,0.00016438,3]
[402504478,1768690248958,-500.0,0.00016438,3]
[402504481,1768690248968,-1783.16,0.00016438,3]
[402504482,1768690248977,-500.0,0.00016438,3]
[402504485,1768690248987,-479.17924292,0.00016438,2]
[402504487,1768690248996,-500.0,0.00016438,3]
[402504489,1768690249005,-500.0,0.00016438,3]
[402504491,1768690249015,-1098.28,0.00016438,3]
[402504493,1768690249025,-500.0,0.00016438,3]
[402504494,1768690249034,-500.0,0.00016438,3]
[402504497,1768690249044,-501.82,0.00016438,3]
[402504499,1768690249057,-734.84,0.00016438,3]
[402504500,1768690249066,-500.0,0.00016438,3]
[402504503,1768690249076,-909.25,0.00016438,3]
[402504505,1768690249086,-500.0,0.00016438,3]
[402504506,1768690249096,-500.0,0.00016438,3]
[402504509,1768690249107,-500.0,0.00016438,3]
[402504510,1768690249118,-500.0,0.00016438,3]
[402504513,1768690249129,-551.88,0.00016438,3]
[402504514,1768690249139,-500.0,0.00016438,3]
[402504516,1768690249148,-500.0,0.00016438,3]
[402504518,1768690249157,-500.0,0.00016438,3]
[402504520,1768690249167,-500.0,0.00016438,3]
[402504522,1768690249176,-500.0,0.00016438,3]
[402504524,1768690249185,-500.0,0.00016438,3]
[402504526,1768690249194,-500.0,0.00016438,3]
[402504528,1768690249203,-500.0,0.00016438,3]
[402504530,1768690249213,-620.38,0.00016438,3]
[402504532,1768690249222,-500.0,0.00016438,3]
[402504534,1768690249232,-500.0,0.00016438,3]
[402504536,1768690249241,-500.0,0.00016438,3]
[402504538,1768690249251,-362.08497691,0.00016438,3]
[402504540,1768690249261,-500.0,0.00016438,3]
[402504542,1768690249270,-500.0,0.00016438,3]
[402504544,1768690249279,-500.0,0.00016438,3]
[402504546,1768690249288,-500.0,0.00016438,3]
[402504548,1768690249302,-506.62,0.00016438,3]
[402504550,1768690249313,-500.0,0.00016438,3]
[402504551,1768690249323,-500.0,0.00016438,3]
[402504553,1768690249333,-519.22,0.00016438,3]
[402504555,1768690249343,-500.0,0.00016438,3]
[402504558,1768690249354,-836.42,0.00016438,3]
[402504559,1768690249364,-500.0,0.00016438,3]
[402504562,1768690249373,-500.0,0.00016438,3]
[402504564,1768690249383,-500.0,0.00016438,3]
[402504566,1768690249394,-500.0,0.00016438,3]
[402504567,1768690249403,-500.0,0.00016438,3]
[402504569,1768690249416,-500.0,0.00016438,3]
[402504572,1768690249427,-263.30228,0.00016438,2]
[402504574,1768690249437,-263.30228,0.00016438,2]
[402504575,1768690249447,-500.0,0.00016438,3]
[402504577,1768690249457,-263.30228,0.00016438,2]
[402504579,1768690249468,-500.0,0.00016438,3]
[402504582,1768690249478,-11282.1,0.00016438,3]
[402504583,1768690249488,-263.30228,0.00016438,2]
[402504586,1768690249497,-824.54,0.00016438,3]
[402504587,1768690249508,-263.30228,0.00016438,2]
[402504589,1768690249519,-263.30228,0.00016438,2]
[402504591,1768690249528,-500.0,0.00016438,3]
[402504593,1768690249537,-500.0,0.00016438,3]
[402504595,1768690249546,-500.0,0.00016438,3]
[402504597,1768690249555,-263.30228,0.00016438,2]
[402504599,1768690249564,-263.30228,0.00016438,2]
[402504601,1768690249573,-500.0,0.00016438,3]
[402504603,1768690249583,-500.0,0.00016438,3]
[402504605,1768690249593,-1192.22,0.00016438,3]
[402504607,1768690249601,-200.53732028,0.00016438,3]
[402504608,1768690249611,-536.50517922,0.00016438,3]
[402504610,1768690249622,-500.0,0.00016438,3]
[402504612,1768690249631,-500.0,0.00016438,3]
[402504614,1768690249640,-500.0,0.00016438,3]
[402504616,1768690249652,-500.0,0.00016438,3]
[402504618,1768690249661,-500.0,0.00016438,3]
[402504620,1768690249670,-500.0,0.00016438,3]
[402504622,1768690249682,-500.0,0.00016438,3]
[402504624,1768690249691,-719.38,0.00016438,3]
[402504626,1768690249701,-467.49360859,0.00016438,3]
[402504628,1768690249710,-500.0,0.00016438,3]
[402504630,1768690249719,-500.0,0.00016438,3]
[402504632,1768690249729,-543.17,0.00016438,3]
[402504633,1768690249738,-500.0,0.00016438,3]
[402504634,1768690249747,-500.0,0.00016438,3]
[402504635,1768690249756,-521.12,0.00016438,3]
[402504636,1768690249765,-500.0,0.00016438,3]
[402504637,1768690249774,-500.0,0.00016438,3]
[402504638,1768690249783,-500.0,0.00016438,2]
[402504639,1768690249792,-500.0,0.00016438,2]
[402504640,1768690249801,-473.31431115,0.00016438,2]
[402504641,1768690249810,-500.0,0.00016438,3]
[402504642,1768690249819,-500.0,0.00016438,3]
[402504643,1768690249828,-696.31,0.00016438,3]
[402504644,1768690249839,-665.4,0.00016438,3]
[402504645,1768690249848,-500.0,0.00016438,3]
[402504646,1768690249857,-500.0,0.00016438,3]
[402504647,1768690249866,-1268.1,0.00016438,3]
[402504648,1768690249876,-500.0,0.00016438,3]
[402504649,1768690249885,-2760.78,0.00016438,3]
[402504650,1768690249893,-500.0,0.00016438,3]
[402504651,1768690249902,-500.0,0.00016438,3]
[402504652,1768690249911,-500.0,0.00016438,3]
[402504653,1768690249920,-500.0,0.00016438,3]
[402504654,1768690249928,-500.0,0.00016438,3]
[402504655,1768690249937,-500.0,0.00016438,3]
[402504656,1768690249946,-853.49,0.00016438,3]
[402504658,1768690249955,-990.52,0.00016438,3]
[402504660,1768690249964,-500.0,0.00016438,3]
[402504662,1768690249973,-1042.34,0.00016438,3]
[402504664,1768690249982,-500.0,0.00016438,3]
[402504666,1768690249992,-923.99,0.00016438,3]
[402504668,1768690250002,-500.0,0.00016438,3]
[402504670,1768690250011,-500.0,0.00016438,3]
[402504672,1768690250020,-1012.92,0.00016438,3]
[402504674,1768690250029,-500.0,0.00016438,3]
[402504675,1768690250039,-664.25,0.00016438,3]
[402504677,1768690250047,-500.0,0.00016438,3]
[402504679,1768690250057,-516.14,0.00016438,3]
[402504681,1768690250067,-2392.5,0.00016438,2]
[402504683,1768690250076,-500.0,0.00016438,3]
[402504685,1768690250085,-2392.5,0.00016438,2]
[402504687,1768690250094,-2392.5,0.00016438,2]
[402504689,1768690250104,-742.53,0.00016438,3]
[402504691,1768690250113,-500.0,0.00016438,3]
[402504693,1768690250123,-2392.5,0.00016438,2]
[402504695,1768690250132,-2392.5,0.00016438,2]
[402504697,1768690250141,-2392.5,0.00016438,2]
[402504699,1768690250150,-2392.5,0.00016438,2]
[402504701,1768690250159,-500.0,0.00016438,3]
[402504703,1768690250169,-2392.5,0.00016438,2]
[402504705,1768690250178,-2392.5,0.00016438,2]
[402504707,1768690250187,-2392.5,0.00016438,2]
[402504709,1768690250196,-2392.5,0.00016438,2]
[402504711,1768690250205,-2392.5,0.00016438,2]
[402504713,1768690250214,-2392.5,0.00016438,2]
[402504714,1768690250223,-500.0,0.00016438,3]
[402504716,1768690250233,-2392.5,0.00016438,2]
[402504718,1768690250244,-2392.5,0.00016438,2]
[402504720,1768690250253,-1477.08,0.00016438,3]
[402504722,1768690250264,-2392.5,0.00016438,2]
[402504724,1768690250273,-500.0,0.00016438,3]
[402504726,1768690250282,-2392.5,0.00016438,2]
[402504728,1768690250292,-500.0,0.00016438,3]
[402504730,1768690250304,-2392.5,0.00016438,2]
[402504732,1768690250313,-2392.5,0.00016438,2]
[402504734,1768690250322,-435.20636976,0.00016438,3]
[402504736,1768690250334,-500.0,0.00016438,3]
[402504738,1768690250344,-2392.5,0.00016438,2]
[402504742,1768690250364,-500.0,0.00016438,3]
[402504744,1768690250374,-2392.5,0.00016438,2]
[402504745,1768690250384,-787.6,0.00016438,3]
[402504747,1768690250395,-2392.5,0.00016438,2]
[402504749,1768690250404,-2392.5,0.00016438,2]
[402504751,1768690250413,-2392.63255502,0.00016438,2]
[402504753,1768690250422,-897.74,0.00016438,3]
[402504755,1768690250431,-1021.5,0.00016438,3]
[402504757,1768690250440,-2290.58,0.00016438,3]
[402504759,1768690250450,-500.0,0.00016438,3]
[402504761,1768690250460,-500.0,0.00016438,3]
[402504763,1768690250469,-500.0,0.00016438,3]
[402504765,1768690250478,-580.86,0.00016438,3]
[402504767,1768690250487,-500.0,0.00016438,3]
[402504769,1768690250496,-500.0,0.00016438,3]
[402504771,1768690250505,-500.0,0.00016438,3]
[402504772,1768690250515,-500.0,0.00016438,3]
[402504774,1768690250524,-649.93,0.00016438,3]
[402504777,1768690250534,-500.0,0.00016438,3]
[402504778,1768690250543,-500.0,0.00016438,3]
[402504780,1768690250553,-500.0,0.00016438,3]
[402504783,1768690250562,-500.0,0.00016438,3]
[402504784,1768690250572,-309.96810054,0.00016438,3]
[402504787,1768690250581,-500.0,0.00016438,3]
[402504788,1768690250591,-515.25,0.00016438,3]
[402504791,1768690250600,-500.0,0.00016438,3]
[402504793,1768690250610,-500.0,0.00016438,3]
[402504794,1768690250620,-500.0,0.00016438,3]
[402504796,1768690250629,-859.97,0.00016438,3]
[402504798,1768690250639,-423.66716387,0.00016438,3]
[402504800,1768690250649,-500.0,0.00016438,3]
[402504802,1768690250659,-500.0,0.00016438,3]
[402504805,1768690250668,-500.0,0.00016438,3]
[402504806,1768690250678,-852.82,0.00016438,3]
[402504808,1768690250687,-500.0,0.00016438,3]
[402504810,1768690250697,-500.0,0.00016438,3]
[402504812,1768690250707,-500.0,0.00016438,3]
[402504814,1768690250716,-500.0,0.00016438,3]
[402504817,1768690250726,-1221.92,0.00016438,3]
[402504819,1768690250736,-845.98,0.00016438,3]
[402504821,1768690250745,-716.77,0.00016438,3]
[402504822,1768690250755,-500.0,0.00016438,3]
[402504824,1768690250765,-500.0,0.00016438,3]
[402504826,1768690250774,-500.0,0.00016438,3]
[402504827,1768690250784,-715.41,0.00016438,3]
[402504829,1768690250793,-500.0,0.00016438,3]
[402504831,1768690250803,-500.0,0.00016438,3]
[402504833,1768690250812,-581.82,0.00016438,3]
[402504835,1768690250821,-500.0,0.00016438,3]
[402504837,1768690250830,-712.39,0.00016438,3]
[402504839,1768690250839,-500.0,0.00016438,3]
[402504841,1768690250848,-852.94,0.00016438,3]
[402504843,1768690250858,-782.26,0.00016438,3]
[402504845,1768690250867,-622.64063856,0.00016438,3]
[402504846,1768690250876,-500.0,0.00016438,3]
[402504848,1768690250886,-532.55606123,0.00016438,3]
[402504850,1768690250897,-500.0,0.00016438,3]
[402504852,1768690250909,-500.0,0.00016438,3]
[402504854,1768690250920,-500.0,0.00016438,3]
[402504857,1768690250932,-565.59190615,0.00016438,3]
[402504858,1768690250943,-500.0,0.00016438,3]
[402504860,1768690250952,-500.0,0.00016438,3]
[402504862,1768690250962,-500.0,0.00016438,3]
[402504865,1768690250972,-500.0,0.00016438,3]
[402504867,1768690250983,-500.0,0.00016438,3]
[402504869,1768690250994,-281.28402588,0.00016438,3]
[402504870,1768690251005,-1066.77,0.00016438,3]
[402504872,1768690251015,-500.0,0.00016438,3]
[402504875,1768690251025,-500.0,0.00016438,3]
[402504876,1768690251035,-982.72,0.00016438,3]
[402504879,1768690251047,-500.0,0.00016438,3]
[402504881,1768690251057,-500.0,0.00016438,3]
[402504883,1768690251068,-500.0,0.00016438,3]
[402504884,1768690251078,-500.0,0.00016438,3]
[402504887,1768690251088,-500.0,0.00016438,3]
[402504888,1768690251098,-500.0,0.00016438,3]
[402504891,1768690251109,-888.49,0.00016438,3]
[402504893,1768690251119,-951.59,0.00016438,3]
[402504895,1768690251129,-500.0,0.00016438,3]
[402504897,1768690251139,-500.0,0.00016438,3]
[402504898,1768690251149,-500.0,0.00016438,3]
[402504901,1768690251159,-500.0,0.00016438,3]
[402504903,1768690251169,-1067.93,0.00016438,3]
[402504905,1768690251179,-500.0,0.00016438,3]
[402504907,1768690251194,-917.71,0.00016438,3]
[402504909,1768690251205,-500.0,0.00016438,3]
[402504911,1768690251215,-427.39365242,0.00016438,3]
[402504913,1768690251226,-500.0,0.00016438,3]
[402504915,1768690251236,-500.0,0.00016438,3]
[402504917,1768690251247,-500.0,0.00016438,3]
[402504920,1768690251258,-500.0,0.00016438,3]
[402504922,1768690251268,-500.0,0.00016438,3]
[402504924,1768690251278,-1013.76,0.00016438,3]
[402504926,1768690251289,-500.0,0.00016438,3]
[402504928,1768690251302,-500.0,0.00016438,3]
[402504929,1768690251313,-500.0,0.00016438,3]
[402504931,1768690251323,-500.0,0.00016438,3]
[402504933,1768690251333,-500.0,0.00016438,3]
[402504935,1768690251345,-500.0,0.00016438,3]
[402504938,1768690251356,-500.0,0.00016438,3]
[402504939,1768690251365,-1126.76,0.00016438,3]
[402504941,1768690251377,-500.0,0.00016438,3]
[402504943,1768690251388,-500.0,0.00016438,3]
[402504946,1768690251398,-983.13,0.00016438,3]
[402504948,1768690251409,-2222.48,0.00016438,3]
[402504950,1768690251419,-500.0,0.00016438,3]
[402504952,1768690251430,-500.0,0.00016438,3]
[402504954,1768690251441,-500.0,0.00016438,3]
[402504956,1768690251451,-967.62,0.00016438,3]
[402504958,1768690251462,-1769.73,0.00016438,3]
[402504960,1768690251473,-500.0,0.00016438,3]
[402504962,1768690251484,-500.0,0.00016438,3]
[402504964,1768690251495,-500.0,0.00016438,3]
[402504966,1768690251506,-533.67555497,0.00016438,3]
[402504968,1768690251517,-918.79,0.00016438,3]
[402504970,1768690251527,-500.0,0.00016438,3]
[402504972,1768690251538,-953.07,0.00016438,3]
[402504974,1768690251549,-500.0,0.00016438,3]
[402504976,1768690251560,-281.96847602,0.00016438,3]
[402504978,1768690251571,-971.31,0.00016438,3]
[402504981,1768690251581,-500.0,0.00016438,3]
[402504983,1768690251591,-500.0,0.00016438,3]
[402504984,1768690251602,-500.0,0.00016438,3]
[402504986,1768690251613,-734.94,0.00016438,3]
[402504988,1768690251623,-500.0,0.00016438,3]
[402504991,1768690251634,-596.26,0.00016438,3]
[402504992,1768690251644,-500.0,0.00016438,3]
[402504994,1768690251654,-500.0,0.00016438,3]
[402504997,1768690251665,-500.0,0.00016438,3]
[402504999,1768690251675,-500.0,0.00016438,3]
[402505001,1768690251688,-500.0,0.00016438,3]
[402505003,1768690251698,-500.0,0.00016438,3]
[402505005,1768690251709,-500.0,0.00016438,3]
[402505007,1768690251719,-1276.22,0.00016438,3]
[402505009,1768690251729,-500.0,0.00016438,3]
[402505011,1768690251740,-500.0,0.00016438,3]
[402505013,1768690251750,-500.0,0.00016438,3]
[402505015,1768690251761,-1013.32,0.00016438,3]
[402505017,1768690251771,-500.0,0.00016438,3]
[402505019,1768690251781,-500.0,0.00016438,3]
[402505021,1768690251791,-1040.56,0.00016438,3]
[402505023,1768690251802,-500.0,0.00016438,2]
[402505025,1768690251812,-500.0,0.00016438,3]
[402505027,1768690251822,-500.0,0.00016438,3]
[402505029,1768690251833,-540.01468021,0.00016438,3]
[402505031,1768690251843,-659.0,0.00016438,3]
[402505033,1768690251853,-500.0,0.00016438,3]
[402505034,1768690251864,-500.0,0.00016438,3]
[402505037,1768690251874,-500.0,0.00016438,3]
[402505039,1768690251884,-561.99,0.00016438,3]
[402505040,1768690251894,-269.65,0.00016438,2]
[402505043,1768690251903,-500.0,0.00016438,3]
[402505045,1768690251915,-500.0,0.00016438,3]
[402505047,1768690251926,-500.0,0.00016438,3]
[402505049,1768690251937,-500.0,0.00016438,3]
[402505051,1768690251946,-500.0,0.00016438,3]
[402505053,1768690251956,-517.45,0.00016438,3]
[402505055,1768690251966,-500.0,0.00016438,2]
[402505057,1768690251977,-500.0,0.00016438,3]
[402505058,1768690251987,-500.0,0.00016438,3]
[402505061,1768690251997,-500.0,0.00016438,3]
[402505063,1768690252011,-922.41,0.00016438,3]
[402505065,1768690252021,-500.0,0.00016438,3]
[402505067,1768690252031,-726.73,0.00016438,3]
[402505069,1768690252041,-500.0,0.00016438,3]
[402505071,1768690252051,-500.0,0.00016438,2]
[402505073,1768690252062,-500.0,0.00016438,3]
[402505075,1768690252073,-6092.67,0.00016438,3]
[402505077,1768690252083,-450.64316952,0.00016438,3]
[402505079,1768690252093,-500.0,0.00016438,3]
[402505081,1768690252103,-500.0,0.00016438,3]
[402505083,1768690252114,-500.0,0.00016438,3]
[402505085,1768690252124,-500.0,0.00016438,3]
[402505087,1768690252134,-938.65,0.00016438,3]
[402505089,1768690252144,-500.0,0.00016438,3]
[402505091,1768690252154,-1576.41,0.00016438,3]
[402505092,1768690252164,-1252.44,0.00016438,3]
[402505093,1768690252174,-500.0,0.00016438,3]
[402505094,1768690252183,-500.0,0.00016438,3]
[402505095,1768690252193,-500.0,0.00016438,3]
[402505096,1768690252203,-500.0,0.00016438,3]
[402505097,1768690252212,-500.0,0.00016438,3]
[402505098,1768690252222,-500.0,0.00016438,3]
[402505099,1768690252232,-500.0,0.00016438,3]
[402505100,1768690252242,-151.0,0.00016438,2]
[402505101,1768690252252,-500.0,0.00016438,3]
[402505102,1768690252262,-151.0,0.00016438,2]
[402505103,1768690252271,-151.0,0.00016438,2]
[402505104,1768690252281,-905.84,0.00016438,3]
[402505105,1768690252291,-598.89865208,0.00016438,3]
[402505106,1768690252306,-500.0,0.00016438,3]
[402505107,1768690252316,-151.0,0.00016438,2]
[402505108,1768690252325,-500.0,0.00016438,3]
[402505109,1768690252335,-500.0,0.00016438,3]
[402505110,1768690252344,-151.0,0.00016438,2]
[402505111,1768690252354,-151.0,0.00016438,2]
[402505112,1768690252364,-500.0,0.00016438,3]
[402505113,1768690252375,-500.0,0.00016438,2]
[402505114,1768690252385,-151.0,0.00016438,2]
[402505115,1768690252394,-151.0,0.00016438,2]
[402505116,1768690252403,-3000.0,0.00016438,2]
[402505117,1768690252414,-500.0,0.0001656,2]
[402505118,1768690252423,-168.0,0.00016608,2]
[402505119,1768690252433,-151.0,0.00016614,2]
[402505120,1768690252442,-461.67526834,0.00016614,2]
[402505121,1768690252451,-2230.315306,0.00016614,2]
[402505122,1768690252461,-311.85701,0.00016614,2]
[402505123,1768690252470,-371.0,0.00016701,2]
[402505124,1768690252480,-227.01474797,0.00016712,3]
[402505125,1768690252489,-590.40738298,0.00016712,3]
[402505126,1768690252498,-500.0,0.00016712,3]
[402505127,1768690252508,-500.0,0.00016712,3]
[402505128,1768690252517,-644.00223298,0.00016712,3]
[402505129,1768690252526,-500.0,0.00016712,3]
[402505130,1768690252536,-500.0,0.00016712,3]
[402505131,1768690252546,-500.0,0.00016712,3]
[402505132,1768690252555,-500.0,0.00016712,3]
[402505133,1768690252564,-500.0,0.00016712,3]
[402505134,1768690252574,-500.0,0.00016712,3]
[402505135,1768690252584,-500.0,0.00016712,3]
[402505136,1768690252593,-500.0,0.00016712,3]
[402505137,1768690252602,-754.74,0.00016712,3]
[402505138,1768690252612,-500.0,0.00016712,3]
[402505139,1768690252623,-560.03,0.00016712,3]
[402505141,1768690252633,-392.31626832,0.00016712,3]
[402505143,1768690252643,-577.48511526,0.00016712,3]
[402505145,1768690252653,-500.0,0.00016712,3]
[402505147,1768690252663,-1218.98,0.00016712,3]
[402505149,1768690252674,-500.0,0.00016712,3]
[402505151,1768690252683,-500.0,0.00016712,3]
[402505153,1768690252695,-500.0,0.00016712,3]
[402505155,1768690252705,-500.0,0.00016712,3]
[402505157,1768690252715,-500.0,0.00016712,3]
[402505159,1768690252725,-500.0,0.00016712,3]
[402505161,1768690252734,-500.0,0.00016712,3]
[402505164,1768690252745,-833.13,0.00016712,3]
[402505166,1768690252754,-500.0,0.00016712,3]
[402505168,1768690252764,-500.0,0.00016712,3]